[Event "*** Titled Tuesday Blitz"]
[Site "Chess.com"]
[Date "2020.10.27"]
[Round "1"]
[White "PLAYER_2006_M"]
[Black "WonderChampion"]
[Result "1-0"]
[WhiteElo "2519"]
[BlackElo "2041"]
[TimeControl "180+1"]
[EndTime "10:07:38 PDT"]
[Termination "PLAYER_2006_M won by resignation"]

1. d4 {[%clk 0:02:47.3]} 1... d5 {[%clk 0:02:57.9]} 2. Nc3 {[%clk 0:02:46.7]}
2... e6 {[%clk 0:02:56.3]} 3. Bf4 {[%clk 0:02:46.3]} 3... c5 {[%clk 0:02:56.2]}
4. e3 {[%clk 0:02:43.8]} 4... Nc6 {[%clk 0:02:55]} 5. Nb5 {[%clk 0:02:41.9]}
5... Qa5+ {[%clk 0:02:45.3]} 6. c3 {[%clk 0:02:37.4]} 6... e5 {[%clk 0:02:30]}
7. Bxe5 {[%clk 0:02:35.6]} 7... Nxe5 {[%clk 0:02:26.5]} 8. dxe5 {[%clk
0:02:36.5]} 8... Be6 {[%clk 0:02:26.2]} 9. Nd6+ {[%clk 0:01:51.5]} 9... Bxd6
{[%clk 0:02:25.2]} 10. exd6 {[%clk 0:01:52.4]} 10... Nf6 {[%clk 0:02:24.3]} 11.
Nf3 {[%clk 0:01:45.2]} 11... O-O {[%clk 0:02:22.5]} 12. Bd3 {[%clk 0:01:43.3]}
12... Rfd8 {[%clk 0:02:05]} 13. O-O {[%clk 0:01:42.1]} 13... Rxd6 {[%clk
0:02:04]} 14. a3 {[%clk 0:01:41.5]} 14... Qb6 {[%clk 0:02:01.9]} 15. b4 {[%clk
0:01:40.4]} 15... cxb4 {[%clk 0:02:01.2]} 16. cxb4 {[%clk 0:01:39.2]} 16... Rad8
{[%clk 0:01:55.3]} 17. Nd4 {[%clk 0:01:37.7]} 17... Qc7 {[%clk 0:01:30]} 18. Rc1
{[%clk 0:01:32.5]} 18... Qe7 {[%clk 0:01:27.7]} 19. Re1 {[%clk 0:01:28.6]} 19...
Ne4 {[%clk 0:01:21.5]} 20. Bxe4 {[%clk 0:01:24.6]} 20... dxe4 {[%clk 0:01:22.4]}
21. Qc2 {[%clk 0:01:21.7]} 21... Bd5 {[%clk 0:01:17.3]} 22. Qc7 {[%clk
0:01:19.3]} 22... R6d7 {[%clk 0:01:14.5]} 23. Qc3 {[%clk 0:01:13.8]} 23... Qg5
{[%clk 0:01:05.9]} 24. Red1 {[%clk 0:01:11.1]} 24... Rd6 {[%clk 0:01:01.5]} 25.
Nb5 {[%clk 0:01:04.5]} 25... Rc6 {[%clk 0:00:49.1]} 26. Qd2 {[%clk 0:00:52.8]}
26... Rg6 {[%clk 0:00:41.4]} 27. g3 {[%clk 0:00:51.1]} 27... Qh5 {[%clk
0:00:22.4]} 28. Qxd5 {[%clk 0:00:45.6]} 28... Qxd1+ {[%clk 0:00:17.2]} 29. Rxd1
{[%clk 0:00:39.9]} 29... Rxd5 {[%clk 0:00:16.4]} 30. Rxd5 {[%clk 0:00:40.8]}
30... h6 {[%clk 0:00:16.9]} 31. Rd6 {[%clk 0:00:40.2]} 31... Rg5 {[%clk
0:00:16.1]} 32. Nd4 {[%clk 0:00:39.5]} 32... Kh7 {[%clk 0:00:14.5]} 33. h4
{[%clk 0:00:37.9]} 33... Rg6 {[%clk 0:00:11.8]} 34. Rxg6 {[%clk 0:00:36.6]}
34... fxg6 {[%clk 0:00:12.7]} 35. Kf1 {[%clk 0:00:37.2]} 35... g5 {[%clk
0:00:11.9]} 36. Ke2 {[%clk 0:00:38.1]} 36... gxh4 {[%clk 0:00:09.7]} 37. gxh4
{[%clk 0:00:39]} 37... Kg6 {[%clk 0:00:10.3]} 38. f3 {[%clk 0:00:39.4]} 38...
Kh5 {[%clk 0:00:11.2]} 39. fxe4 {[%clk 0:00:39.2]} 39... Kxh4 {[%clk 0:00:12.1]}
40. e5 {[%clk 0:00:40.1]} 40... Kg5 {[%clk 0:00:12.4]} 41. Kf3 {[%clk
0:00:40.6]} 41... Kg6 {[%clk 0:00:10.6]} 42. e6 {[%clk 0:00:40.8]} 42... Kf6
{[%clk 0:00:10.7]} 43. e4 {[%clk 0:00:41.3]} 43... Ke7 {[%clk 0:00:11.6]} 44. e5
{[%clk 0:00:41.6]} 44... g5 {[%clk 0:00:11.4]} 45. Kg4 {[%clk 0:00:41.8]} 45...
b6 {[%clk 0:00:10.4]} 46. Kf5 {[%clk 0:00:41.8]} 46... a5 {[%clk 0:00:11.3]} 47.
Nc6+ {[%clk 0:00:42.3]} 47... Ke8 {[%clk 0:00:10.7]} 48. Kf6 {[%clk 0:00:41.8]}
48... axb4 {[%clk 0:00:10]} 49. axb4 {[%clk 0:00:41]} 49... Kf8 {[%clk
0:00:10.9]} 50. Nd4 {[%clk 0:00:40.1]} 50... Kg8 {[%clk 0:00:11.8]} 51. Nf5
{[%clk 0:00:40.1]} 51... Kf8 {[%clk 0:00:12.7]} 52. e7+ {[%clk 0:00:39.4]} 52...
Ke8 {[%clk 0:00:13.6]} 53. e6 {[%clk 0:00:39.7]} 1-0

[Event "*** Titled Tuesday Blitz"]
[Site "Chess.com"]
[Date "2020.10.27"]
[Round "1"]
[White "Brave_spirit12"]
[Black "Andreikka"]
[Result "0-1"]
[WhiteElo "2473"]
[BlackElo "2916"]
[TimeControl "180+1"]
[EndTime "10:07:40 PDT"]
[Termination "Andreikka won by resignation"]

1. e4 {[%clk 0:02:58.2]} 1... c6 {[%clk 0:02:55.4]} 2. Nc3 {[%clk 0:02:57.6]}
2... d5 {[%clk 0:02:54.4]} 3. Nf3 {[%clk 0:02:57.4]} 3... Bg4 {[%clk 0:02:53.5]}
4. h3 {[%clk 0:02:56.3]} 4... Bxf3 {[%clk 0:02:53.3]} 5. Qxf3 {[%clk 0:02:57.2]}
5... e6 {[%clk 0:02:53.2]} 6. d4 {[%clk 0:02:54.2]} 6... dxe4 {[%clk 0:02:52.5]}
7. Nxe4 {[%clk 0:02:48.5]} 7... Qxd4 {[%clk 0:02:47.4]} 8. Bd3 {[%clk
0:02:47.6]} 8... Nd7 {[%clk 0:02:46.9]} 9. c3 {[%clk 0:02:46.3]} 9... Qb6 {[%clk
0:02:44]} 10. O-O {[%clk 0:02:45.9]} 10... Ngf6 {[%clk 0:02:43.5]} 11. Bg5
{[%clk 0:02:42.8]} 11... Be7 {[%clk 0:02:40.1]} 12. Rad1 {[%clk 0:02:05.4]}
12... O-O {[%clk 0:02:37.8]} 13. Ng3 {[%clk 0:02:00.4]} 13... Ne5 {[%clk
0:02:29.6]} 14. Qe2 {[%clk 0:02:00]} 14... Nxd3 {[%clk 0:02:28.6]} 15. Rxd3
{[%clk 0:02:00.9]} 15... Rad8 {[%clk 0:02:22.6]} 16. Rfd1 {[%clk 0:01:59.6]}
16... Rxd3 {[%clk 0:02:21.1]} 17. Rxd3 {[%clk 0:01:58.9]} 17... Rd8 {[%clk
0:02:21.1]} 18. Ne4 {[%clk 0:01:51.5]} 18... Nxe4 {[%clk 0:02:01.9]} 19. Rxd8+
{[%clk 0:01:17.4]} 19... Qxd8 {[%clk 0:01:50.8]} 20. Bxe7 {[%clk 0:01:15.5]}
20... Nxc3 {[%clk 0:01:50.4]} 21. bxc3 {[%clk 0:01:14.3]} 21... Qxe7 {[%clk
0:01:50.6]} 22. Qd3 {[%clk 0:01:14.8]} 22... g6 {[%clk 0:01:43.9]} 23. Qd4
{[%clk 0:01:14.1]} 23... c5 {[%clk 0:01:40.9]} 24. Qe5 {[%clk 0:01:13.8]} 24...
b6 {[%clk 0:01:39.5]} 25. g3 {[%clk 0:01:12.1]} 25... Qd8 {[%clk 0:01:36.8]} 26.
h4 {[%clk 0:01:10]} 26... h5 {[%clk 0:01:35.8]} 27. Qf4 {[%clk 0:00:58]} 27...
Qd1+ {[%clk 0:01:30.5]} 28. Kh2 {[%clk 0:00:55.9]} 28... Qc2 {[%clk 0:01:29.7]}
29. Qb8+ {[%clk 0:00:52.3]} 29... Kh7 {[%clk 0:01:26.3]} 30. Qf4 {[%clk
0:00:51.2]} 30... Qf5 {[%clk 0:01:26.9]} 31. Qd2 {[%clk 0:00:48.1]} 31... Qd5
{[%clk 0:01:26.6]} 32. Qf4 {[%clk 0:00:47.3]} 32... Kg7 {[%clk 0:01:24.6]} 33.
a4 {[%clk 0:00:44.1]} 33... a6 {[%clk 0:01:20.8]} 34. Qc7 {[%clk 0:00:40.5]}
34... b5 {[%clk 0:01:20.8]} 35. Qa5 {[%clk 0:00:36.6]} 35... Qd2 {[%clk
0:01:11.6]} 36. axb5 {[%clk 0:00:32.9]} 36... Qxf2+ {[%clk 0:01:10.4]} 37. Kh3
{[%clk 0:00:32.7]} 37... Qf1+ {[%clk 0:01:10.6]} 38. Kh2 {[%clk 0:00:32.9]}
38... axb5 {[%clk 0:01:10.8]} 39. Qc7 {[%clk 0:00:31.9]} 39... Qe2+ {[%clk
0:01:05.2]} 40. Kh3 {[%clk 0:00:29.8]} 40... Qe3 {[%clk 0:01:06.1]} 41. Qa5
{[%clk 0:00:24.5]} 41... Qg1 {[%clk 0:01:02.7]} 42. Qa8 {[%clk 0:00:22.2]} 42...
Qf1+ {[%clk 0:01:01.9]} 43. Kh2 {[%clk 0:00:22.1]} 43... Qf2+ {[%clk 0:00:59.7]}
44. Kh3 {[%clk 0:00:22]} 44... Qf5+ {[%clk 0:01:00.2]} 45. Kh2 {[%clk
0:00:17.2]} 45... Qc2+ {[%clk 0:01:00.5]} 46. Kh3 {[%clk 0:00:18.1]} 46... Qxc3
{[%clk 0:01:01.1]} 47. Qd8 {[%clk 0:00:17.2]} 47... b4 {[%clk 0:01:01.2]} 48.
Kh2 {[%clk 0:00:17.6]} 48... b3 {[%clk 0:01:01.1]} 49. g4 {[%clk 0:00:18.3]}
49... hxg4 {[%clk 0:00:59.8]} 50. h5 {[%clk 0:00:18.4]} 50... Qh3+ {[%clk
0:00:59.8]} 51. Kg1 {[%clk 0:00:18.1]} 51... Qxh5 {[%clk 0:01:00.7]} 52. Kf2
{[%clk 0:00:16.3]} 52... Qd5 {[%clk 0:01:00]} 53. Qb6 {[%clk 0:00:15.5]} 53...
Qd4+ {[%clk 0:00:59.9]} 54. Kg3 {[%clk 0:00:15.8]} 54... b2 {[%clk 0:01:00.8]}
55. Kh4 {[%clk 0:00:15.9]} 55... g3+ {[%clk 0:01:00.7]} 56. Kh3 {[%clk
0:00:13.6]} 56... g2 {[%clk 0:01:00.4]} 57. Qb7 {[%clk 0:00:10.5]} 57... Qd3+
{[%clk 0:00:58.1]} 58. Kh2 {[%clk 0:00:10]} 58... g1=Q+ {[%clk 0:00:58]} 59.
Kxg1 {[%clk 0:00:08.6]} 59... b1=Q+ {[%clk 0:00:58.9]} 60. Kh2 {[%clk
0:00:09.1]} 60... Qe2+ {[%clk 0:00:57.9]} 0-1

[Event "*** Titled Tuesday Blitz"]
[Site "Chess.com"]
[Date "2020.10.27"]
[Round "1"]
[White "renehp"]
[Black "Guenplen"]
[Result "1-0"]
[WhiteElo "2461"]
[BlackElo "2835"]
[TimeControl "180+1"]
[EndTime "10:07:40 PDT"]
[Termination "renehp won on time"]

1. e4 {[%clk 0:03:00.8]} 1... c5 {[%clk 0:02:59.8]} 2. Nf3 {[%clk 0:03:00.7]}
2... e6 {[%clk 0:03:00.1]} 3. g3 {[%clk 0:02:59.5]} 3... Nc6 {[%clk 0:02:59.8]}
4. Bg2 {[%clk 0:02:59.1]} 4... Nf6 {[%clk 0:03:00.3]} 5. Nc3 {[%clk 0:02:58.2]}
5... d6 {[%clk 0:02:59.2]} 6. O-O {[%clk 0:02:47.2]} 6... Be7 {[%clk 0:02:46.1]}
7. d4 {[%clk 0:02:43.2]} 7... cxd4 {[%clk 0:02:45.8]} 8. Nxd4 {[%clk 0:02:44.1]}
8... O-O {[%clk 0:02:43.9]} 9. Nb3 {[%clk 0:02:42]} 9... a6 {[%clk 0:02:41.9]}
10. f4 {[%clk 0:02:38.6]} 10... Bd7 {[%clk 0:02:40.1]} 11. g4 {[%clk 0:02:37.6]}
11... Be8 {[%clk 0:02:39.4]} 12. g5 {[%clk 0:02:36.6]} 12... Nd7 {[%clk
0:02:39.6]} 13. h4 {[%clk 0:02:35]} 13... Rc8 {[%clk 0:02:18.9]} 14. h5 {[%clk
0:02:17.5]} 14... e5 {[%clk 0:01:40.7]} 15. Qg4 {[%clk 0:01:57.1]} 15... exf4
{[%clk 0:01:37.1]} 16. Bxf4 {[%clk 0:01:56.4]} 16... Nce5 {[%clk 0:01:34.8]} 17.
Qg3 {[%clk 0:01:55.7]} 17... Nb6 {[%clk 0:01:22.4]} 18. Rad1 {[%clk 0:01:49.9]}
18... Qc7 {[%clk 0:01:14.9]} 19. a4 {[%clk 0:01:40.3]} 19... Bc6 {[%clk
0:01:12.3]} 20. Nd4 {[%clk 0:01:26.8]} 20... g6 {[%clk 0:01:11.2]} 21. hxg6
{[%clk 0:01:18.5]} 21... hxg6 {[%clk 0:01:05.6]} 22. b3 {[%clk 0:01:06.5]} 22...
Bd7 {[%clk 0:00:58.4]} 23. Nce2 {[%clk 0:01:04.5]} 23... Bg4 {[%clk 0:00:40.5]}
24. c4 {[%clk 0:00:55.6]} 24... Bh5 {[%clk 0:00:33]} 25. Rd2 {[%clk 0:00:48.3]}
25... Nbd7 {[%clk 0:00:33]} 26. Nc3 {[%clk 0:00:45.7]} 26... Rce8 {[%clk
0:00:33.3]} 27. Nd5 {[%clk 0:00:45]} 27... Qd8 {[%clk 0:00:31]} 28. Bh3 {[%clk
0:00:44.5]} 28... Nb6 {[%clk 0:00:22.2]} 29. Rh2 {[%clk 0:00:38.9]} 29... Nxd5
{[%clk 0:00:19.8]} 30. cxd5 {[%clk 0:00:39.8]} 30... Kg7 {[%clk 0:00:14.4]} 31.
Bg2 {[%clk 0:00:18]} 31... Qb6 {[%clk 0:00:12.1]} 32. Be3 {[%clk 0:00:16.7]}
32... Qc7 {[%clk 0:00:12.2]} 33. Rxh5 {[%clk 0:00:16.4]} 33... Rh8 {[%clk
0:00:05.1]} 34. Rxh8 {[%clk 0:00:15.3]} 34... Rxh8 {[%clk 0:00:06]} 35. Bf4
{[%clk 0:00:15.2]} 35... Qc5 {[%clk 0:00:05.7]} 36. Be3 {[%clk 0:00:15.2]} 36...
Qc3 {[%clk 0:00:04.6]} 37. Bf2 {[%clk 0:00:15.1]} 37... Qd2 {[%clk 0:00:04.3]}
38. Nf3 {[%clk 0:00:15]} 38... Nd3 {[%clk 0:00:03]} 39. Bd4+ {[%clk 0:00:12.6]}
39... Kg8 {[%clk 0:00:01.8]} 40. Bxh8 {[%clk 0:00:12.2]} 40... Qe2 {[%clk
0:00:01.1]} 41. Bd4 {[%clk 0:00:10.4]} 1-0

[Event "*** Titled Tuesday Blitz"]
[Site "Chess.com"]
[Date "2020.10.27"]
[Round "1"]
[White "albi1999"]
[Black "totoro9"]
[Result "1-0"]
[WhiteElo "2614"]
[BlackElo "2276"]
[TimeControl "180+1"]
[EndTime "10:07:40 PDT"]
[Termination "albi1999 won on time"]

1. d4 {[%clk 0:03:00.9]} 1... Nf6 {[%clk 0:02:58.4]} 2. c4 {[%clk 0:02:55.6]}
2... g6 {[%clk 0:02:58.4]} 3. g3 {[%clk 0:02:55.6]} 3... c6 {[%clk 0:02:56.9]}
4. Bg2 {[%clk 0:02:51.6]} 4... d5 {[%clk 0:02:55.1]} 5. Nd2 {[%clk 0:02:51.9]}
5... Bg7 {[%clk 0:02:54.6]} 6. Ngf3 {[%clk 0:02:48.9]} 6... O-O {[%clk
0:02:53.8]} 7. O-O {[%clk 0:02:49]} 7... a5 {[%clk 0:02:52.7]} 8. b3 {[%clk
0:02:47.3]} 8... Bf5 {[%clk 0:02:39.9]} 9. Nh4 {[%clk 0:02:42]} 9... Be6 {[%clk
0:02:20.8]} 10. Bb2 {[%clk 0:02:38.1]} 10... a4 {[%clk 0:02:15.6]} 11. Qc2
{[%clk 0:02:35.6]} 11... a3 {[%clk 0:02:10.3]} 12. Bc3 {[%clk 0:02:34.6]} 12...
b5 {[%clk 0:01:42.1]} 13. c5 {[%clk 0:02:21.5]} 13... Qc8 {[%clk 0:01:16.8]} 14.
Rfe1 {[%clk 0:02:20]} 14... Bh3 {[%clk 0:01:14.4]} 15. Bh1 {[%clk 0:02:19.4]}
15... Nbd7 {[%clk 0:01:14.2]} 16. b4 {[%clk 0:02:14.2]} 16... Re8 {[%clk
0:01:12.5]} 17. f4 {[%clk 0:02:09.3]} 17... Nf8 {[%clk 0:01:09.7]} 18. Nhf3
{[%clk 0:02:02]} 18... Bf5 {[%clk 0:01:08.9]} 19. Qc1 {[%clk 0:02:01]} 19... Ne4
{[%clk 0:01:09]} 20. Nxe4 {[%clk 0:01:56.9]} 20... Bxe4 {[%clk 0:01:07.3]} 21.
Ne5 {[%clk 0:01:56.6]} 21... Bxh1 {[%clk 0:01:06.7]} 22. Kxh1 {[%clk 0:01:57.5]}
22... f6 {[%clk 0:01:06.2]} 23. Nd3 {[%clk 0:01:56]} 23... Qf5 {[%clk
0:01:00.8]} 24. Qe3 {[%clk 0:01:54.5]} 24... Nd7 {[%clk 0:00:59.6]} 25. Qf3
{[%clk 0:01:51.5]} 25... e5 {[%clk 0:00:52.3]} 26. fxe5 {[%clk 0:01:40.4]} 26...
fxe5 {[%clk 0:00:48.9]} 27. Qxf5 {[%clk 0:01:13.8]} 27... gxf5 {[%clk
0:00:48.7]} 28. e3 {[%clk 0:01:12.8]} 28... exd4 {[%clk 0:00:47.9]} 29. exd4
{[%clk 0:01:11.2]} 29... Re4 {[%clk 0:00:48.1]} 30. Nf2 {[%clk 0:01:08.6]} 30...
Ree8 {[%clk 0:00:32.9]} 31. Kg2 {[%clk 0:01:04.5]} 31... Nf6 {[%clk 0:00:32.7]}
32. Rab1 {[%clk 0:00:56.4]} 32... Ne4 {[%clk 0:00:27.8]} 33. Nxe4 {[%clk
0:00:54.8]} 33... fxe4 {[%clk 0:00:27.9]} 34. Rb3 {[%clk 0:00:54.1]} 34... e3
{[%clk 0:00:25.4]} 35. Kf3 {[%clk 0:00:52.7]} 35... Bh6 {[%clk 0:00:25.7]} 36.
Re2 {[%clk 0:00:45.9]} 36... Rf8+ {[%clk 0:00:25.4]} 37. Kg2 {[%clk 0:00:45.5]}
37... Rf7 {[%clk 0:00:23.8]} 38. h4 {[%clk 0:00:38.5]} 38... Raf8 {[%clk
0:00:22.8]} 39. Be1 {[%clk 0:00:39]} 39... Rf1 {[%clk 0:00:20.8]} 40. Rxa3
{[%clk 0:00:35.5]} 40... Rxe1 {[%clk 0:00:04.3]} 41. Rxe1 {[%clk 0:00:35.1]}
41... Rf2+ {[%clk 0:00:04.6]} 42. Kh3 {[%clk 0:00:25.6]} 42... Rd2 {[%clk
0:00:05.4]} 43. Ra6 {[%clk 0:00:21.7]} 43... e2 {[%clk 0:00:03.4]} 44. Rxc6
{[%clk 0:00:17.4]} 1-0

[Event "*** Titled Tuesday Blitz"]
[Site "Chess.com"]
[Date "2020.10.27"]
[Round "1"]
[White "ajedrezhoy"]
[Black "sara_khm"]
[Result "0-1"]
[WhiteElo "2228"]
[BlackElo "2584"]
[TimeControl "180+1"]
[EndTime "10:07:41 PDT"]
[Termination "sara_khm won on time"]

1. d4 {[%clk 0:02:58.1]} 1... Nf6 {[%clk 0:02:59.3]} 2. Nf3 {[%clk 0:02:58]}
2... e6 {[%clk 0:02:59.1]} 3. c4 {[%clk 0:02:56.5]} 3... b6 {[%clk 0:02:57.3]}
4. e3 {[%clk 0:02:55.4]} 4... Bb7 {[%clk 0:02:56.9]} 5. b3 {[%clk 0:02:52.9]}
5... c5 {[%clk 0:02:56.2]} 6. Bb2 {[%clk 0:02:52]} 6... cxd4 {[%clk 0:02:56.4]}
7. exd4 {[%clk 0:02:51.5]} 7... Be7 {[%clk 0:02:56.9]} 8. Nbd2 {[%clk 0:02:51]}
8... O-O {[%clk 0:02:56.8]} 9. Bd3 {[%clk 0:02:50.8]} 9... d5 {[%clk 0:02:57.1]}
10. O-O {[%clk 0:02:49.7]} 10... Nc6 {[%clk 0:02:52.9]} 11. Rc1 {[%clk
0:02:46.6]} 11... Rc8 {[%clk 0:02:51.9]} 12. Qe2 {[%clk 0:02:45.5]} 12... Re8
{[%clk 0:02:50.2]} 13. Rfd1 {[%clk 0:02:42.9]} 13... Rc7 {[%clk 0:02:45.8]} 14.
Nf1 {[%clk 0:02:41.4]} 14... Qa8 {[%clk 0:02:44.5]} 15. Bb1 {[%clk 0:02:30.6]}
15... Rec8 {[%clk 0:02:38.2]} 16. Ne3 {[%clk 0:02:20.6]} 16... Na5 {[%clk
0:02:26.1]} 17. Ne5 {[%clk 0:02:12.5]} 17... Bd6 {[%clk 0:02:16.4]} 18. f4
{[%clk 0:02:05.2]} 18... Ba6 {[%clk 0:01:52.1]} 19. Bd3 {[%clk 0:01:34.1]} 19...
Bb7 {[%clk 0:01:19.9]} 20. f5 {[%clk 0:01:15.2]} 20... dxc4 {[%clk 0:01:04.3]}
21. bxc4 {[%clk 0:01:11.1]} 21... Be4 {[%clk 0:01:04.3]} 22. fxe6 {[%clk
0:01:08.9]} 22... fxe6 {[%clk 0:01:02.7]} 23. N3g4 {[%clk 0:01:01.6]} 23... Bxd3
{[%clk 0:00:32.2]} 24. Nxf6+ {[%clk 0:00:55.8]} 24... gxf6 {[%clk 0:00:31.5]}
25. Nxd3 {[%clk 0:00:44.2]} 25... Re8 {[%clk 0:00:31.5]} 26. c5 {[%clk
0:00:37.7]} 26... Bf8 {[%clk 0:00:28.2]} 27. cxb6 {[%clk 0:00:25.9]} 27... Rxc1
{[%clk 0:00:24.2]} 28. Rxc1 {[%clk 0:00:25.6]} 28... axb6 {[%clk 0:00:20.9]} 29.
Rc7 {[%clk 0:00:25]} 29... Qd5 {[%clk 0:00:19]} 30. Qg4+ {[%clk 0:00:21]} 30...
Qg5 {[%clk 0:00:19]} 31. Qxg5+ {[%clk 0:00:20.5]} 31... fxg5 {[%clk 0:00:19.2]}
32. Ne5 {[%clk 0:00:19.9]} 32... Rd8 {[%clk 0:00:18.5]} 33. Ng4 {[%clk
0:00:17.6]} 33... Bg7 {[%clk 0:00:18]} 34. Ne5 {[%clk 0:00:13.9]} 34... Bxe5
{[%clk 0:00:18]} 35. dxe5 {[%clk 0:00:12.3]} 35... Rd1+ {[%clk 0:00:18.9]} 36.
Kf2 {[%clk 0:00:11.9]} 36... Rd2+ {[%clk 0:00:19.8]} 37. Kf3 {[%clk 0:00:11.7]}
37... Rxb2 {[%clk 0:00:20.7]} 38. h3 {[%clk 0:00:09.7]} 38... Rxa2 {[%clk
0:00:20.8]} 39. g3 {[%clk 0:00:09.2]} 39... Ra4 {[%clk 0:00:20.8]} 40. Re7
{[%clk 0:00:07.6]} 40... Nb3 {[%clk 0:00:19.2]} 41. Ke3 {[%clk 0:00:05.6]} 41...
Nc5 {[%clk 0:00:19.3]} 42. Rc7 {[%clk 0:00:01.7]} 42... Re4+ {[%clk 0:00:19.2]}
43. Kf3 {[%clk 0:00:01.5]} 43... Rxe5 {[%clk 0:00:19.6]} 44. Rc6 {[%clk
0:00:01.6]} 44... Rf5+ {[%clk 0:00:19.3]} 0-1

[Event "*** Titled Tuesday Blitz"]
[Site "Chess.com"]
[Date "2020.10.27"]
[Round "1"]
[White "elohunter1999"]
[Black "kamilianin235"]
[Result "0-1"]
[WhiteElo "2518"]
[BlackElo "2128"]
[TimeControl "180+1"]
[EndTime "10:07:41 PDT"]
[Termination "kamilianin235 won by checkmate"]

1. e4 {[%clk 0:03:00.9]} 1... c5 {[%clk 0:02:58.1]} 2. Nf3 {[%clk 0:03:00.7]}
2... d6 {[%clk 0:02:42.9]} 3. d4 {[%clk 0:03:00.2]} 3... cxd4 {[%clk 0:02:42.6]}
4. Nxd4 {[%clk 0:03:01.1]} 4... Nf6 {[%clk 0:02:42]} 5. Nc3 {[%clk 0:03:01]}
5... Nc6 {[%clk 0:02:41.7]} 6. Bg5 {[%clk 0:03:00.4]} 6... Qb6 {[%clk
0:02:40.7]} 7. Bxf6 {[%clk 0:02:59.1]} 7... gxf6 {[%clk 0:02:39.8]} 8. Nb3
{[%clk 0:02:59.1]} 8... e6 {[%clk 0:02:39.1]} 9. Qd2 {[%clk 0:02:58.8]} 9... Be7
{[%clk 0:02:38.2]} 10. O-O-O {[%clk 0:02:57.4]} 10... a6 {[%clk 0:02:36.9]} 11.
f4 {[%clk 0:02:57.4]} 11... Qc7 {[%clk 0:02:36.1]} 12. Be2 {[%clk 0:02:49.9]}
12... b5 {[%clk 0:02:35.8]} 13. a3 {[%clk 0:02:35.4]} 13... Bb7 {[%clk
0:02:32.3]} 14. Rhf1 {[%clk 0:02:35]} 14... O-O-O {[%clk 0:02:31.5]} 15. Kb1
{[%clk 0:02:32.4]} 15... Na5 {[%clk 0:02:21]} 16. Nxa5 {[%clk 0:02:22.7]} 16...
Qxa5 {[%clk 0:02:19.8]} 17. f5 {[%clk 0:02:00.6]} 17... b4 {[%clk 0:02:07.4]}
18. axb4 {[%clk 0:01:44.8]} 18... Qxb4 {[%clk 0:02:05.7]} 19. Bh5 {[%clk
0:01:30.8]} 19... Rhf8 {[%clk 0:01:51.8]} 20. Rf3 {[%clk 0:01:30.6]} 20... Kb8
{[%clk 0:01:46]} 21. Qe2 {[%clk 0:01:20.1]} 21... Ka8 {[%clk 0:01:39.8]} 22.
Rfd3 {[%clk 0:01:14.8]} 22... Rb8 {[%clk 0:01:32.2]} 23. Rd4 {[%clk 0:01:12.4]}
23... Qb6 {[%clk 0:01:27.9]} 24. Na4 {[%clk 0:00:57.9]} 24... Qa5 {[%clk
0:01:24.2]} 25. b3 {[%clk 0:00:55.5]} 25... Bc6 {[%clk 0:01:19.4]} 26. Ka2
{[%clk 0:00:52.2]} 26... e5 {[%clk 0:01:07.8]} 27. Rd5 {[%clk 0:00:48]} 27...
Bxd5 {[%clk 0:01:05.2]} 28. Rxd5 {[%clk 0:00:48.9]} 28... Rb5 {[%clk 0:01:05]}
29. Qc4 {[%clk 0:00:43.7]} 29... Rxd5 {[%clk 0:01:00]} 30. exd5 {[%clk 0:00:40]}
30... Qb5 {[%clk 0:00:49.7]} 31. Qc7 {[%clk 0:00:37.5]} 31... Qb7 {[%clk
0:00:48.4]} 32. Qa5 {[%clk 0:00:26.2]} 32... Ka7 {[%clk 0:00:43.3]} 33. Be2
{[%clk 0:00:23.6]} 33... Bd8 {[%clk 0:00:41.8]} 34. Qd2 {[%clk 0:00:23.5]} 34...
Bb6 {[%clk 0:00:37.1]} 35. Bf3 {[%clk 0:00:21.1]} 35... Rc8 {[%clk 0:00:34.4]}
36. Be4 {[%clk 0:00:20.7]} 36... Bd4 {[%clk 0:00:31.3]} 37. c4 {[%clk
0:00:20.9]} 37... Qc7 {[%clk 0:00:29.1]} 38. Bc2 {[%clk 0:00:16.5]} 38... Bc5
{[%clk 0:00:25.5]} 39. Qh6 {[%clk 0:00:15.9]} 39... Qa5 {[%clk 0:00:20.4]} 40.
Qxf6 {[%clk 0:00:14.2]} 40... Rc7 {[%clk 0:00:19]} 41. Qd8 {[%clk 0:00:13.7]}
41... Kb7 {[%clk 0:00:16.7]} 42. Qe8 {[%clk 0:00:12]} 42... Qd2 {[%clk
0:00:14.5]} 43. Kb1 {[%clk 0:00:12]} 43... Qe1+ {[%clk 0:00:12.9]} 44. Ka2
{[%clk 0:00:10.3]} 44... Bd4 {[%clk 0:00:12.4]} 45. Qh8 {[%clk 0:00:04.9]} 45...
Qa1# {[%clk 0:00:10.3]} 0-1